[Event "Late-Titled-Tuesday-Blitz-February-06-2024"]
[Site "Chess.com"]
[Date "2024.02.06"]
[Round "11"]
[White "dennisodessa"]
[Black "FaustinoOro"]
[Result "1-0"]
[WhiteElo "2620"]
[BlackElo "2762"]
[TimeControl "180+1"]
[EndTime "16:05:52 PST"]
[Termination "dennisodessa won on time"]

1. d4 {[%clk 0:03:00.9]} 1... Nf6 {[%clk 0:02:59.9]} 2. c4 {[%clk 0:03:01.1]}
2... e6 {[%clk 0:02:59.9]} 3. Nc3 {[%clk 0:03:00.8]} 3... Bb4 {[%clk 0:03:00]}
4. Qc2 {[%clk 0:03:01.6]} 4... d5 {[%clk 0:02:58.7]} 5. a3 {[%clk 0:03:01.6]}
5... Bxc3+ {[%clk 0:02:54.1]} 6. Qxc3 {[%clk 0:03:02.5]} 6... O-O {[%clk
0:02:54.5]} 7. Bg5 {[%clk 0:03:03.1]} 7... Nbd7 {[%clk 0:02:53.3]} 8. e3 {[%clk
0:03:00.3]} 8... h6 {[%clk 0:02:52.2]} 9. Bh4 {[%clk 0:03:00.4]} 9... c6 {[%clk
0:02:48.4]} 10. Nf3 {[%clk 0:03:00.2]} 10... b6 {[%clk 0:02:47.6]} 11. cxd5
{[%clk 0:02:59.1]} 11... cxd5 {[%clk 0:02:48.5]} 12. Bd3 {[%clk 0:02:53.2]}
12... Bb7 {[%clk 0:02:44.6]} 13. O-O {[%clk 0:02:52.7]} 13... Rc8 {[%clk
0:02:44.8]} 14. Qd2 {[%clk 0:02:52.6]} 14... Qe7 {[%clk 0:02:37.2]} 15. Rac1
{[%clk 0:02:52.2]} 15... Nb8 {[%clk 0:02:28.8]} 16. Ne5 {[%clk 0:02:49.8]} 16...
Rxc1 {[%clk 0:02:02.5]} 17. Rxc1 {[%clk 0:02:49.3]} 17... Rc8 {[%clk 0:02:03.2]}
18. Rxc8+ {[%clk 0:02:46.9]} 18... Bxc8 {[%clk 0:02:04.1]} 19. Qc3 {[%clk
0:02:47.8]} 19... Bb7 {[%clk 0:01:57.4]} 20. Ng4 {[%clk 0:02:44.7]} 20... Nc6
{[%clk 0:01:20.3]} 21. b4 {[%clk 0:02:34]} 21... a5 {[%clk 0:01:16.1]} 22. b5
{[%clk 0:02:29]} 22... Nd8 {[%clk 0:01:08.5]} 23. Bxf6 {[%clk 0:02:24.5]} 23...
gxf6 {[%clk 0:01:06.9]} 24. Nxh6+ {[%clk 0:02:25.4]} 24... Kg7 {[%clk
0:00:53.6]} 25. Ng4 {[%clk 0:02:24.1]} 25... f5 {[%clk 0:00:41.7]} 26. Ne5
{[%clk 0:02:24]} 26... f6 {[%clk 0:00:42]} 27. Nf3 {[%clk 0:02:18.5]} 27... Nf7
{[%clk 0:00:40.3]} 28. a4 {[%clk 0:02:13.7]} 28... Nd6 {[%clk 0:00:36.2]} 29.
Nd2 {[%clk 0:02:13.7]} 29... Bc8 {[%clk 0:00:31.7]} 30. Qc6 {[%clk 0:02:08.4]}
30... Qd8 {[%clk 0:00:29]} 31. g3 {[%clk 0:01:39.7]} 31... Bb7 {[%clk
0:00:28.5]} 32. Qc2 {[%clk 0:01:40.2]} 32... Nf7 {[%clk 0:00:24.9]} 33. h4
{[%clk 0:01:39.1]} 33... Bc8 {[%clk 0:00:22.4]} 34. Qc3 {[%clk 0:01:34]} 34...
Bd7 {[%clk 0:00:21.6]} 35. Bb1 {[%clk 0:01:33.5]} 35... Qb8 {[%clk 0:00:19.1]}
36. Nf3 {[%clk 0:01:26.5]} 36... Qd6 {[%clk 0:00:18.7]} 37. Ne1 {[%clk
0:01:25.7]} 37... Nh6 {[%clk 0:00:17.2]} 38. Nd3 {[%clk 0:01:25.5]} 38... Nf7
{[%clk 0:00:14.1]} 39. Nf4 {[%clk 0:01:22.3]} 39... Nh6 {[%clk 0:00:09.3]} 40.
Nh5+ {[%clk 0:01:20.5]} 40... Kg6 {[%clk 0:00:08.6]} 41. Nf4+ {[%clk 0:01:21.4]}
41... Kg7 {[%clk 0:00:09.1]} 42. Bc2 {[%clk 0:01:21.8]} 42... Ng4 {[%clk
0:00:08.9]} 43. Bd1 {[%clk 0:01:19.4]} 43... Nh6 {[%clk 0:00:09.2]} 44. Qd2
{[%clk 0:00:53.1]} 44... Be8 {[%clk 0:00:05]} 45. Qc3 {[%clk 0:00:49.6]} 45...
Bd7 {[%clk 0:00:04.9]} 46. Kg2 {[%clk 0:00:48.3]} 46... Ng8 {[%clk 0:00:04.5]}
47. Qc2 {[%clk 0:00:36.1]} 47... Nh6 {[%clk 0:00:03.9]} 48. Qe2 {[%clk
0:00:35.8]} 48... e5 {[%clk 0:00:03.2]} 49. Nd3 {[%clk 0:00:35.1]} 49... Nf7
{[%clk 0:00:02.1]} 50. Qh5 {[%clk 0:00:34.3]} 50... Qe7 {[%clk 0:00:02.4]} 51.
Bb3 {[%clk 0:00:32.9]} 51... Be6 {[%clk 0:00:02.3]} 52. Qe2 {[%clk 0:00:24.5]}
52... Qa3 {[%clk 0:00:01.2]} 53. Qc2 {[%clk 0:00:24.7]} 53... Qd6 {[%clk
0:00:01.9]} 54. Qc6 {[%clk 0:00:24.2]} 54... Qa3 {[%clk 0:00:02.4]} 55. Qxe6
{[%clk 0:00:16.7]} 55... Qxb3 {[%clk 0:00:02.7]} 56. Qxf5 {[%clk 0:00:17.6]}
56... exd4 {[%clk 0:00:01.6]} 57. exd4 {[%clk 0:00:18.5]} 57... Qxa4 {[%clk
0:00:01]} 58. Nf4 {[%clk 0:00:18.7]} 58... Qxb5 {[%clk 0:00:01.1]} 59. Ne6+
{[%clk 0:00:17.5]} 59... Kg8 {[%clk 0:00:01.5]} 60. Qxf6 {[%clk 0:00:17.6]} 1-0

[Event "Late-Titled-Tuesday-Blitz-February-06-2024"]
[Site "Chess.com"]
[Date "2024.02.06"]
[Round "11"]
[White "Mikhail_Golubev"]
[Black "sergiochess83"]
[Result "1-0"]
[WhiteElo "2703"]
[BlackElo "2901"]
[TimeControl "180+1"]
[EndTime "16:05:56 PST"]
[Termination "Mikhail_Golubev won on time"]

1. e4 {[%clk 0:03:00.9]} 1... e6 {[%clk 0:02:51.1]} 2. d4 {[%clk 0:03:00.4]}
2... d5 {[%clk 0:02:51.4]} 3. Nc3 {[%clk 0:03:00.8]} 3... Nf6 {[%clk 0:02:49.6]}
4. Bg5 {[%clk 0:02:59.8]} 4... h6 {[%clk 0:02:49.3]} 5. Bxf6 {[%clk 0:02:55.8]}
5... Qxf6 {[%clk 0:02:49.2]} 6. exd5 {[%clk 0:02:46.9]} 6... Bb4 {[%clk
0:02:48.3]} 7. Bd3 {[%clk 0:02:41.4]} 7... exd5 {[%clk 0:02:23.1]} 8. Ne2 {[%clk
0:02:40.2]} 8... c6 {[%clk 0:02:21.2]} 9. O-O {[%clk 0:02:34.5]} 9... O-O {[%clk
0:02:20.8]} 10. Qd2 {[%clk 0:02:34.4]} 10... Nd7 {[%clk 0:02:00.7]} 11. a3
{[%clk 0:02:32.1]} 11... Bd6 {[%clk 0:02:00.1]} 12. Rad1 {[%clk 0:02:23.1]}
12... Re8 {[%clk 0:01:55.9]} 13. f4 {[%clk 0:02:17.8]} 13... Qd8 {[%clk
0:01:41.1]} 14. Ng3 {[%clk 0:02:10.4]} 14... Nf6 {[%clk 0:01:40.9]} 15. Nf5
{[%clk 0:02:02.9]} 15... Bxf5 {[%clk 0:01:33.6]} 16. Bxf5 {[%clk 0:02:03.8]}
16... Qb6 {[%clk 0:01:30.3]} 17. b4 {[%clk 0:01:43.6]} 17... a5 {[%clk
0:01:23.9]} 18. Na4 {[%clk 0:01:43.5]} 18... Qc7 {[%clk 0:01:19.7]} 19. Nc5
{[%clk 0:01:39.9]} 19... Re7 {[%clk 0:01:15.5]} 20. g3 {[%clk 0:01:29.5]} 20...
Rae8 {[%clk 0:01:02.9]} 21. Rfe1 {[%clk 0:01:25.3]} 21... axb4 {[%clk
0:00:51.6]} 22. axb4 {[%clk 0:01:24.5]} 22... g6 {[%clk 0:00:32.2]} 23. Bd3
{[%clk 0:01:22.7]} 23... b6 {[%clk 0:00:30.8]} 24. Nb3 {[%clk 0:01:22.4]} 24...
Kg7 {[%clk 0:00:26.3]} 25. c3 {[%clk 0:01:15.6]} 25... c5 {[%clk 0:00:23.6]} 26.
bxc5 {[%clk 0:01:05]} 26... bxc5 {[%clk 0:00:24.5]} 27. dxc5 {[%clk 0:01:01.7]}
27... Bxc5+ {[%clk 0:00:24.3]} 28. Nd4 {[%clk 0:00:57.7]} 28... Qb6 {[%clk
0:00:17.3]} 29. Rxe7 {[%clk 0:00:35]} 29... Bxd4+ {[%clk 0:00:17.4]} 30. cxd4
{[%clk 0:00:35.5]} 30... Qxd4+ {[%clk 0:00:17.6]} 31. Qe3 {[%clk 0:00:26.8]}
31... Qxe3+ {[%clk 0:00:16.3]} 32. Rxe3 {[%clk 0:00:27.4]} 32... Rxe3 {[%clk
0:00:16.8]} 33. Bf1 {[%clk 0:00:22.3]} 33... Ra3 {[%clk 0:00:12.3]} 34. Bg2
{[%clk 0:00:20.3]} 34... Ra5 {[%clk 0:00:12.5]} 35. h3 {[%clk 0:00:12.7]} 35...
h5 {[%clk 0:00:12.8]} 36. Rd4 {[%clk 0:00:11.3]} 36... Kf8 {[%clk 0:00:12.2]}
37. Rb4 {[%clk 0:00:09.2]} 37... Ra1+ {[%clk 0:00:08.7]} 38. Kf2 {[%clk
0:00:06.9]} 38... Ra2+ {[%clk 0:00:08.4]} 39. Kf1 {[%clk 0:00:06.4]} 39... Ra7
{[%clk 0:00:07.9]} 40. Kf2 {[%clk 0:00:05.9]} 40... Ke7 {[%clk 0:00:08]} 41. Bf3
{[%clk 0:00:03.6]} 41... Rd7 {[%clk 0:00:05]} 42. g4 {[%clk 0:00:03.2]} 42...
hxg4 {[%clk 0:00:05.3]} 43. hxg4 {[%clk 0:00:04.1]} 43... Ne8 {[%clk 0:00:05.4]}
44. Rd4 {[%clk 0:00:01.8]} 44... Nc7 {[%clk 0:00:05.5]} 45. Ke3 {[%clk
0:00:01.9]} 45... Kd6 {[%clk 0:00:04.6]} 46. Rd2 {[%clk 0:00:02.3]} 46... Re7+
{[%clk 0:00:04.6]} 47. Kf2 {[%clk 0:00:02.4]} 47... Kc5 {[%clk 0:00:04.6]} 48.
Rc2+ {[%clk 0:00:02.7]} 48... Kb6 {[%clk 0:00:05]} 49. Ra2 {[%clk 0:00:02.9]}
49... Kc5 {[%clk 0:00:03.1]} 50. Rc2+ {[%clk 0:00:03]} 50... Kd6 {[%clk
0:00:03.4]} 51. Rd2 {[%clk 0:00:03.2]} 51... Re8 {[%clk 0:00:03.3]} 52. Rd1
{[%clk 0:00:03.5]} 52... Ra8 {[%clk 0:00:03.2]} 53. Rd2 {[%clk 0:00:03.5]} 53...
Ra3 {[%clk 0:00:03.2]} 54. g5 {[%clk 0:00:03.7]} 54... Ra5 {[%clk 0:00:02.7]}
55. Rd1 {[%clk 0:00:04]} 55... Ne6 {[%clk 0:00:02.9]} 56. f5 {[%clk 0:00:02.6]}
56... gxf5 {[%clk 0:00:02.6]} 57. Bh5 {[%clk 0:00:02.7]} 57... Nxg5 {[%clk
0:00:02.7]} 58. Kg3 {[%clk 0:00:02.8]} 58... Ra3+ {[%clk 0:00:02.8]} 59. Kf4
{[%clk 0:00:02.8]} 59... Ne6+ {[%clk 0:00:03.5]} 60. Kxf5 {[%clk 0:00:03]} 60...
Rf3+ {[%clk 0:00:03.6]} 61. Bxf3 {[%clk 0:00:02.2]} 1-0

[Event "Late-Titled-Tuesday-Blitz-February-06-2024"]
[Site "Chess.com"]
[Date "2024.02.06"]
[Round "11"]
[White "Doublekk14"]
[Black "babero_gordo"]
[Result "0-1"]
[WhiteElo "2295"]
[BlackElo "2132"]
[TimeControl "180+1"]
[EndTime "16:05:56 PST"]
[Termination "babero_gordo won on time"]

1. c4 {[%clk 0:03:00.9]} 1... e5 {[%clk 0:02:58.6]} 2. Nc3 {[%clk 0:02:59.3]}
2... Nc6 {[%clk 0:02:59]} 3. e3 {[%clk 0:02:58.4]} 3... f5 {[%clk 0:02:55.5]} 4.
Nf3 {[%clk 0:02:57.3]} 4... Nf6 {[%clk 0:02:53.6]} 5. d4 {[%clk 0:02:56.4]} 5...
e4 {[%clk 0:02:53.5]} 6. Nd2 {[%clk 0:02:56]} 6... d5 {[%clk 0:02:52.6]} 7. cxd5
{[%clk 0:02:55.3]} 7... Nxd5 {[%clk 0:02:52.6]} 8. Bc4 {[%clk 0:02:54.9]} 8...
Be6 {[%clk 0:02:46.5]} 9. Qb3 {[%clk 0:02:36.2]} 9... Na5 {[%clk 0:02:36.8]} 10.
Qa4+ {[%clk 0:02:35.5]} 10... c6 {[%clk 0:02:36.7]} 11. Bxd5 {[%clk 0:02:30.1]}
11... Bxd5 {[%clk 0:02:32.6]} 12. b4 {[%clk 0:01:50.5]} 12... Nc4 {[%clk
0:02:23.1]} 13. b5 {[%clk 0:01:49.7]} 13... Nb6 {[%clk 0:02:07]} 14. Qc2 {[%clk
0:01:42.1]} 14... Bb4 {[%clk 0:02:00]} 15. Nxd5 {[%clk 0:01:34.2]} 15... cxd5
{[%clk 0:01:54.3]} 16. O-O {[%clk 0:01:32.8]} 16... O-O {[%clk 0:01:50.1]} 17.
Qb3 {[%clk 0:01:30.5]} 17... Bd6 {[%clk 0:01:46.3]} 18. a4 {[%clk 0:01:27.7]}
18... Rc8 {[%clk 0:01:37.4]} 19. Ba3 {[%clk 0:01:21]} 19... Nc4 {[%clk
0:01:30.8]} 20. Nxc4 {[%clk 0:01:16.3]} 20... Rxc4 {[%clk 0:01:27.3]} 21. Rac1
{[%clk 0:01:08.5]} 21... Rxc1 {[%clk 0:00:59.4]} 22. Rxc1 {[%clk 0:01:06.7]}
22... Qe7 {[%clk 0:00:57.9]} 23. Bxd6 {[%clk 0:00:59.9]} 23... Qxd6 {[%clk
0:00:57.7]} 24. Rc5 {[%clk 0:00:57.7]} 24... Rd8 {[%clk 0:00:54.6]} 25. a5
{[%clk 0:00:48.9]} 25... g5 {[%clk 0:00:48.2]} 26. b6 {[%clk 0:00:47]} 26...
axb6 {[%clk 0:00:46.4]} 27. axb6 {[%clk 0:00:41.7]} 27... f4 {[%clk 0:00:45.7]}
28. Rc7 {[%clk 0:00:40.7]} 28... Ra8 {[%clk 0:00:42.8]} 29. Qc3 {[%clk
0:00:31.3]} 29... Qxb6 {[%clk 0:00:33.3]} 30. Rc8+ {[%clk 0:00:25.9]} 30... Rxc8
{[%clk 0:00:32.1]} 31. Qxc8+ {[%clk 0:00:25.5]} 31... Kg7 {[%clk 0:00:30.6]} 32.
h4 {[%clk 0:00:18.1]} 32... fxe3 {[%clk 0:00:24.7]} 33. fxe3 {[%clk 0:00:13.6]}
33... Qc6 {[%clk 0:00:22.4]} 34. Qh3 {[%clk 0:00:08.9]} 34... gxh4 {[%clk
0:00:19.3]} 35. Qg4+ {[%clk 0:00:07.9]} 35... Qg6 {[%clk 0:00:18.2]} 36. Qd7+
{[%clk 0:00:06.6]} 36... Qf7 {[%clk 0:00:18]} 37. Qg4+ {[%clk 0:00:06.2]} 37...
Kf8 {[%clk 0:00:15.8]} 38. Qxh4 {[%clk 0:00:05.5]} 38... Qe7 {[%clk 0:00:11.2]}
39. Qh6+ {[%clk 0:00:04.7]} 39... Qg7 {[%clk 0:00:11]} 40. Qd6+ {[%clk
0:00:03.9]} 40... Qe7 {[%clk 0:00:08]} 41. Qxd5 {[%clk 0:00:03.8]} 41... b6
{[%clk 0:00:04.4]} 42. Qf5+ {[%clk 0:00:02.9]} 42... Ke8 {[%clk 0:00:04]} 43. g3
{[%clk 0:00:01.3]} 43... Kd8 {[%clk 0:00:02.5]} 44. Kg2 {[%clk 0:00:02.2]} 44...
b5 {[%clk 0:00:02]} 45. Kh3 {[%clk 0:00:03.1]} 45... b4 {[%clk 0:00:02.4]} 46.
Kg4 {[%clk 0:00:04]} 46... b3 {[%clk 0:00:03]} 47. Qb5 {[%clk 0:00:04]} 47... b2
{[%clk 0:00:03.9]} 48. Qxb2 {[%clk 0:00:02.5]} 48... Qd7+ {[%clk 0:00:04.8]} 49.
Kf4 {[%clk 0:00:02.5]} 49... Qd6+ {[%clk 0:00:04.4]} 50. Kxe4 {[%clk 0:00:03.4]}
50... Qg6+ {[%clk 0:00:04.6]} 51. Ke5 {[%clk 0:00:03.5]} 51... Qxg3+ {[%clk
0:00:05.5]} 52. Kd5 {[%clk 0:00:04.4]} 52... Qg5+ {[%clk 0:00:05.6]} 53. Kc4
{[%clk 0:00:04.4]} 53... Qxe3 {[%clk 0:00:06.5]} 54. Kc5 {[%clk 0:00:04.2]}
54... Qe7+ {[%clk 0:00:06.2]} 55. Kc4 {[%clk 0:00:04.4]} 55... Qc7+ {[%clk
0:00:07.1]} 56. Kd3 {[%clk 0:00:05.1]} 56... Qg3+ {[%clk 0:00:07.3]} 57. Kc4
{[%clk 0:00:04.6]} 57... Qc7+ {[%clk 0:00:07.2]} 58. Kb3 {[%clk 0:00:05.5]}
58... Qb6+ {[%clk 0:00:07.3]} 59. Ka2 {[%clk 0:00:06.4]} 59... Qxb2+ {[%clk
0:00:07.5]} 60. Kxb2 {[%clk 0:00:06.6]} 60... h5 {[%clk 0:00:08.4]} 61. Kc3
{[%clk 0:00:07.4]} 61... h4 {[%clk 0:00:09.3]} 62. Kd3 {[%clk 0:00:08]} 62... h3
{[%clk 0:00:10.2]} 63. Ke3 {[%clk 0:00:08.6]} 63... h2 {[%clk 0:00:11.1]} 64.
Kf2 {[%clk 0:00:09.2]} 64... h1=Q {[%clk 0:00:12]} 0-1

[Event "Late-Titled-Tuesday-Blitz-February-06-2024"]
[Site "Chess.com"]
[Date "2024.02.06"]
[Round "11"]
[White "kingofthenil"]
[Black "DinaBelenkaya"]
[Result "1-0"]
[WhiteElo "2680"]
[BlackElo "2449"]
[TimeControl "180+1"]
[EndTime "16:05:59 PST"]
[Termination "kingofthenil won by checkmate"]

1. e4 {[%clk 0:03:00.9]} 1... c6 {[%clk 0:02:51.3]} 2. c4 {[%clk 0:02:59.5]}
2... d5 {[%clk 0:02:50.5]} 3. cxd5 {[%clk 0:03:00.4]} 3... cxd5 {[%clk
0:02:50.8]} 4. exd5 {[%clk 0:03:01.3]} 4... Nf6 {[%clk 0:02:50.1]} 5. Nc3 {[%clk
0:03:02.2]} 5... Nbd7 {[%clk 0:02:49.6]} 6. Nf3 {[%clk 0:03:03.1]} 6... g6
{[%clk 0:02:48.3]} 7. Bc4 {[%clk 0:03:03.6]} 7... Bg7 {[%clk 0:02:48.7]} 8. O-O
{[%clk 0:03:03.4]} 8... O-O {[%clk 0:02:48.9]} 9. d3 {[%clk 0:03:03.8]} 9... a6
{[%clk 0:02:47.7]} 10. a4 {[%clk 0:03:03.7]} 10... b6 {[%clk 0:02:48.2]} 11. Re1
{[%clk 0:03:03.1]} 11... Bb7 {[%clk 0:02:48.5]} 12. d4 {[%clk 0:03:03.5]} 12...
Rc8 {[%clk 0:02:47.5]} 13. Qb3 {[%clk 0:03:03.6]} 13... Qc7 {[%clk 0:02:44.3]}
14. Bf1 {[%clk 0:03:00.4]} 14... Qb8 {[%clk 0:02:43.5]} 15. Rxe7 {[%clk
0:02:59.5]} 15... Rfe8 {[%clk 0:02:39.2]} 16. Rxe8+ {[%clk 0:02:11.4]} 16...
Rxe8 {[%clk 0:02:40.1]} 17. Bg5 {[%clk 0:02:11.7]} 17... Qd6 {[%clk 0:02:39.3]}
18. Bc4 {[%clk 0:02:06.6]} 18... h6 {[%clk 0:02:18.4]} 19. Bh4 {[%clk 0:02:06]}
19... Nh5 {[%clk 0:02:18.4]} 20. Bg3 {[%clk 0:02:03.3]} 20... Nxg3 {[%clk
0:02:18.1]} 21. hxg3 {[%clk 0:02:04.2]} 21... g5 {[%clk 0:02:16.8]} 22. Qd1
{[%clk 0:01:56.8]} 22... Nf6 {[%clk 0:02:11.5]} 23. Ne5 {[%clk 0:01:53.7]} 23...
Nxd5 {[%clk 0:02:07.2]} 24. Qf3 {[%clk 0:01:53.1]} 24... Bxe5 {[%clk 0:00:59.9]}
25. dxe5 {[%clk 0:01:50.4]} 25... Rxe5 {[%clk 0:00:57.1]} 26. Rd1 {[%clk
0:01:42.8]} 26... g4 {[%clk 0:00:45]} 27. Qxg4+ {[%clk 0:01:35.4]} 27... Kh8
{[%clk 0:00:38.3]} 28. Bxd5 {[%clk 0:01:30.9]} 28... Bxd5 {[%clk 0:00:35.9]} 29.
Qd4 {[%clk 0:01:31.3]} 29... Qf6 {[%clk 0:00:11.3]} 30. Nxd5 {[%clk 0:01:26.1]}
30... Re1+ {[%clk 0:00:11.3]} 31. Kh2 {[%clk 0:01:26.6]} 31... Qxd4 {[%clk
0:00:07.5]} 32. Rxd4 {[%clk 0:01:27.5]} 32... Re2 {[%clk 0:00:07.3]} 33. Rb4
{[%clk 0:01:22.2]} 33... b5 {[%clk 0:00:07.7]} 34. axb5 {[%clk 0:01:21.9]} 34...
axb5 {[%clk 0:00:08.6]} 35. f3 {[%clk 0:01:21.5]} 35... Kg7 {[%clk 0:00:08.1]}
36. Rxb5 {[%clk 0:01:21.6]} 36... Rd2 {[%clk 0:00:08.6]} 37. Nf4 {[%clk
0:01:21.7]} 37... Rc2 {[%clk 0:00:08.7]} 38. Rb6 {[%clk 0:01:20.1]} 38... Rd2
{[%clk 0:00:05.6]} 39. g4 {[%clk 0:01:19.6]} 39... Re2 {[%clk 0:00:05.5]} 40.
Rg6+ {[%clk 0:01:17.8]} 40... fxg6 {[%clk 0:00:04.5]} 41. Nxe2 {[%clk
0:01:18.4]} 41... Kf6 {[%clk 0:00:05]} 42. f4 {[%clk 0:01:18.3]} 42... g5 {[%clk
0:00:04.6]} 43. g3 {[%clk 0:01:17.9]} 43... Ke6 {[%clk 0:00:04.2]} 44. Kg2
{[%clk 0:01:18]} 44... Kd5 {[%clk 0:00:04.2]} 45. b3 {[%clk 0:01:17.5]} 45...
Kc5 {[%clk 0:00:04.4]} 46. Kf3 {[%clk 0:01:17.5]} 46... Kb4 {[%clk 0:00:04.6]}
47. Nd4 {[%clk 0:01:18.1]} 47... Kc3 {[%clk 0:00:05.1]} 48. Ke4 {[%clk
0:01:18.7]} 48... Kb4 {[%clk 0:00:05]} 49. Kd3 {[%clk 0:01:18.7]} 49... Kc5
{[%clk 0:00:05.1]} 50. Kc3 {[%clk 0:01:19.3]} 50... Kd5 {[%clk 0:00:05.3]} 51.
Kd3 {[%clk 0:01:20]} 51... Kc5 {[%clk 0:00:05.7]} 52. Nc2 {[%clk 0:01:20.7]}
52... Kb5 {[%clk 0:00:06]} 53. f5 {[%clk 0:01:20.9]} 53... Kc5 {[%clk
0:00:06.2]} 54. b4+ {[%clk 0:01:21.6]} 54... Kb5 {[%clk 0:00:06.2]} 55. Kd4
{[%clk 0:01:21.3]} 55... h5 {[%clk 0:00:06.5]} 56. gxh5 {[%clk 0:01:21.3]} 56...
g4 {[%clk 0:00:06.7]} 57. Kc3 {[%clk 0:01:20]} 57... Ka4 {[%clk 0:00:06.9]} 58.
h6 {[%clk 0:01:19.6]} 58... Kb5 {[%clk 0:00:06.1]} 59. h7 {[%clk 0:01:19.7]}
59... Ka4 {[%clk 0:00:06.5]} 60. h8=Q {[%clk 0:01:19.4]} 60... Kb5 {[%clk
0:00:07.1]} 61. f6 {[%clk 0:01:19.7]} 61... Ka4 {[%clk 0:00:07.4]} 62. f7 {[%clk
0:01:20.1]} 62... Kb5 {[%clk 0:00:07.9]} 63. f8=Q {[%clk 0:01:20.3]} 63... Ka4
{[%clk 0:00:08.6]} 64. Qhg7 {[%clk 0:01:16.3]} 64... Kb5 {[%clk 0:00:08.8]} 65.
Qxg4 {[%clk 0:01:17.1]} 65... Ka6 {[%clk 0:00:08.8]} 66. Qe2+ {[%clk 0:01:16.2]}
66... Kb6 {[%clk 0:00:08.7]} 67. g4 {[%clk 0:01:14.7]} 67... Kb7 {[%clk
0:00:08.4]} 68. g5 {[%clk 0:01:15.6]} 68... Kc6 {[%clk 0:00:08.8]} 69. g6 {[%clk
0:01:16.5]} 69... Kd7 {[%clk 0:00:09.3]} 70. g7 {[%clk 0:01:17.4]} 70... Kc7
{[%clk 0:00:09.8]} 71. g8=Q {[%clk 0:01:17.1]} 71... Kc6 {[%clk 0:00:10.7]} 72.
Nd4+ {[%clk 0:01:15.7]} 72... Kb7 {[%clk 0:00:11.6]} 73. b5 {[%clk 0:01:13.6]}
73... Kb6 {[%clk 0:00:12.5]} 74. Qb8+ {[%clk 0:01:12.2]} 74... Ka5 {[%clk
0:00:13.4]} 75. Qc7+ {[%clk 0:01:10.2]} 75... Ka4 {[%clk 0:00:14]} 76. b6 {[%clk
0:01:10]} 76... Ka3 {[%clk 0:00:14.5]} 77. b7 {[%clk 0:01:09.4]} 77... Ka4
{[%clk 0:00:15.4]} 78. b8=Q {[%clk 0:01:08.8]} 78... Ka3 {[%clk 0:00:16]} 79.
Qee7+ {[%clk 0:01:06]} 79... Ka4 {[%clk 0:00:16.9]} 80. Qcc4+ {[%clk 0:01:02]}
80... Ka5 {[%clk 0:00:14.6]} 81. Qcc5+ {[%clk 0:00:59.6]} 81... Ka4 {[%clk
0:00:15]} 82. Qc6+ {[%clk 0:00:54]} 82... Ka5 {[%clk 0:00:12]} 83. Qcb6+ {[%clk
0:00:51.5]} 83... Ka4 {[%clk 0:00:11.3]} 84. Qee8+ {[%clk 0:00:49.8]} 84... Ka3
{[%clk 0:00:11.1]} 85. Qgf8+ {[%clk 0:00:49.5]} 85... Ka2 {[%clk 0:00:11.2]} 86.
Q6d8 {[%clk 0:00:46.4]} 86... Ka1 {[%clk 0:00:09.7]} 87. Nc2+ {[%clk 0:00:44.2]}
87... Ka2 {[%clk 0:00:08.2]} 88. Qg8# {[%clk 0:00:43.1]} 1-0